[Event "Early-Titled-Tuesday-Blitz-October-10-2023"]
[Site "Chess.com"]
[Date "2023.10.10"]
[Round "5"]
[White "ExchangeAB"]
[Black "Alonmindlin"]
[Result "0-1"]
[WhiteElo "2496"]
[BlackElo "2705"]
[TimeControl "180+1"]
[EndTime "8:52:50 PDT"]
[Termination "Alonmindlin won by resignation"]

1. d4 {[%clk 0:03:00.9]} 1... Nf6 {[%clk 0:02:59.8]} 2. Nc3 {[%clk 0:02:59.8]}
2... d5 {[%clk 0:02:59.7]} 3. Bf4 {[%clk 0:02:59.4]} 3... c6 {[%clk 0:02:59.9]}
4. e3 {[%clk 0:02:59.1]} 4... Bf5 {[%clk 0:02:59.7]} 5. Bd3 {[%clk 0:02:59.7]}
5... Bxd3 {[%clk 0:02:58.7]} 6. cxd3 {[%clk 0:02:59.3]} 6... Nbd7 {[%clk
0:02:59.1]} 7. Qb3 {[%clk 0:02:59.1]} 7... Qb6 {[%clk 0:02:56.9]} 8. Qxb6 {[%clk
0:02:59.1]} 8... axb6 {[%clk 0:02:56]} 9. Nf3 {[%clk 0:02:59.7]} 9... e6 {[%clk
0:02:56.2]} 10. O-O {[%clk 0:02:59.7]} 10... Bb4 {[%clk 0:02:50.5]} 11. a4
{[%clk 0:02:58.3]} 11... Nh5 {[%clk 0:02:41.9]} 12. Bc7 {[%clk 0:02:56.4]} 12...
Ke7 {[%clk 0:02:37.2]} 13. g4 {[%clk 0:02:42.9]} 13... Rhc8 {[%clk 0:02:27.6]}
14. Bg3 {[%clk 0:02:17.1]} 14... Nxg3 {[%clk 0:02:23.2]} 15. hxg3 {[%clk
0:02:18]} 15... Bxc3 {[%clk 0:02:19.8]} 16. bxc3 {[%clk 0:02:17.5]} 16... Ra6
{[%clk 0:02:20.7]} 17. Ra2 {[%clk 0:02:11.5]} 17... Rca8 {[%clk 0:02:18.7]} 18.
Rfa1 {[%clk 0:02:12.1]} 18... b5 {[%clk 0:02:19.1]} 19. Nd2 {[%clk 0:01:53.1]}
19... Rxa4 {[%clk 0:02:18.7]} 20. Rxa4 {[%clk 0:01:51.4]} 20... bxa4 {[%clk
0:02:19.2]} 21. c4 {[%clk 0:01:50]} 21... b5 {[%clk 0:02:17.9]} 22. Kf1 {[%clk
0:01:46.4]} 22... b4 {[%clk 0:02:17.4]} 23. Ke2 {[%clk 0:01:46.6]} 23... b3
{[%clk 0:02:11.7]} 24. Kd1 {[%clk 0:01:41.1]} 24... b2 {[%clk 0:01:51.8]} 25.
Ra2 {[%clk 0:01:39.2]} 25... a3 {[%clk 0:01:51.8]} 26. Nb1 {[%clk 0:01:31.6]}
26... dxc4 {[%clk 0:01:51.5]} 27. dxc4 {[%clk 0:01:31.7]} 27... Nb6 {[%clk
0:01:51.8]} 28. Rxa3 {[%clk 0:01:23.2]} 28... Rxa3 {[%clk 0:01:50.7]} 29. Nxa3
{[%clk 0:01:24.1]} 29... Nxc4 {[%clk 0:01:51.3]} 30. Nb1 {[%clk 0:01:20.9]}
30... e5 {[%clk 0:01:38.4]} 31. Kc2 {[%clk 0:01:18.5]} 31... exd4 {[%clk
0:01:38.5]} 32. exd4 {[%clk 0:01:19.4]} 32... Kd6 {[%clk 0:01:37.4]} 33. Kd3
{[%clk 0:01:11.6]} 33... Nb6 {[%clk 0:01:35.9]} 34. Kc3 {[%clk 0:01:07.9]} 34...
Kd5 {[%clk 0:01:35.7]} 35. Kxb2 {[%clk 0:01:03.2]} 35... Kxd4 {[%clk 0:01:35.7]}
36. Kc2 {[%clk 0:01:03.8]} 36... Nc4 {[%clk 0:01:30.1]} 37. Nc3 {[%clk
0:01:00.7]} 37... Ne5 {[%clk 0:01:30.5]} 38. Ne2+ {[%clk 0:00:22.1]} 38... Ke4
{[%clk 0:01:28.1]} 39. g5 {[%clk 0:00:19.6]} 39... Kf3 {[%clk 0:01:27.1]} 40.
Nd4+ {[%clk 0:00:19.3]} 40... Kxf2 {[%clk 0:01:27.2]} 41. Nf5 {[%clk 0:00:19.7]}
41... g6 {[%clk 0:01:26.2]} 42. Nd4 {[%clk 0:00:18.2]} 42... Kxg3 {[%clk
0:01:26]} 0-1

[Event "Early-Titled-Tuesday-Blitz-October-10-2023"]
[Site "Chess.com"]
[Date "2023.10.10"]
[Round "5"]
[White "Ural_bogatyr"]
[Black "falzehope0"]
[Result "1/2-1/2"]
[WhiteElo "2520"]
[BlackElo "2322"]
[TimeControl "180+1"]
[EndTime "8:53:03 PDT"]
[Termination "Game drawn by repetition"]

1. d4 {[%clk 0:03:00.9]} 1... e6 {[%clk 0:02:51.4]} 2. e4 {[%clk 0:03:00.4]}
2... d5 {[%clk 0:02:51.6]} 3. Nc3 {[%clk 0:03:00.6]} 3... f5 {[%clk 0:02:50.6]}
4. exf5 {[%clk 0:02:59.2]} 4... exf5 {[%clk 0:02:50.9]} 5. Nf3 {[%clk
0:02:57.6]} 5... Nf6 {[%clk 0:02:51.1]} 6. Bg5 {[%clk 0:02:53.3]} 6... c6 {[%clk
0:02:50.8]} 7. Ne5 {[%clk 0:02:43.9]} 7... Be7 {[%clk 0:02:49.2]} 8. Bd3 {[%clk
0:02:34.7]} 8... O-O {[%clk 0:02:47.1]} 9. O-O {[%clk 0:02:34.4]} 9... Qb6
{[%clk 0:02:39.7]} 10. Re1 {[%clk 0:02:12.1]} 10... Qxb2 {[%clk 0:02:18.7]} 11.
Na4 {[%clk 0:01:54.6]} 11... Qa3 {[%clk 0:02:13.9]} 12. c3 {[%clk 0:01:50.8]}
12... b5 {[%clk 0:02:05.6]} 13. Nc5 {[%clk 0:01:42.7]} 13... Bxc5 {[%clk
0:02:04.5]} 14. dxc5 {[%clk 0:01:40.5]} 14... Qxc5 {[%clk 0:02:01.8]} 15. Bxf6
{[%clk 0:01:25.2]} 15... Rxf6 {[%clk 0:01:59.7]} 16. Qh5 {[%clk 0:01:19.8]}
16... Qf8 {[%clk 0:01:43.7]} 17. Ng4 {[%clk 0:01:04]} 17... Rf7 {[%clk
0:01:33.6]} 18. Re3 {[%clk 0:00:49]} 18... Nd7 {[%clk 0:01:23.4]} 19. Rae1
{[%clk 0:00:46.9]} 19... Bb7 {[%clk 0:01:20.4]} 20. Rh3 {[%clk 0:00:36.9]} 20...
Nf6 {[%clk 0:00:59.7]} 21. Qxf5 {[%clk 0:00:23.3]} 21... Bc8 {[%clk 0:00:50.3]}
22. Qxh7+ {[%clk 0:00:08.2]} 22... Nxh7 {[%clk 0:00:47.4]} 23. Bxh7+ {[%clk
0:00:09.1]} 23... Kh8 {[%clk 0:00:46.8]} 24. Bg6+ {[%clk 0:00:09.4]} 24... Kg8
{[%clk 0:00:46.8]} 25. Bh7+ {[%clk 0:00:09.4]} 25... Kh8 {[%clk 0:00:46.7]} 26.
Bg6+ {[%clk 0:00:09.2]} 26... Kg8 {[%clk 0:00:47]} 27. Bh7+ {[%clk 0:00:06.2]}
1/2-1/2

[Event "Early-Titled-Tuesday-Blitz-October-10-2023"]
[Site "Chess.com"]
[Date "2023.10.10"]
[Round "5"]
[White "Balla_Tamas"]
[Black "ama18"]
[Result "0-1"]
[WhiteElo "2424"]
[BlackElo "2555"]
[TimeControl "180+1"]
[EndTime "8:53:06 PDT"]
[Termination "ama18 won by resignation"]

1. e4 {[%clk 0:02:54.6]} 1... c5 {[%clk 0:02:58.3]} 2. c3 {[%clk 0:02:54.4]}
2... d5 {[%clk 0:02:56.2]} 3. exd5 {[%clk 0:02:54.1]} 3... Qxd5 {[%clk
0:02:57.1]} 4. d4 {[%clk 0:02:54.4]} 4... g6 {[%clk 0:02:57.7]} 5. Nf3 {[%clk
0:02:54.4]} 5... Bg7 {[%clk 0:02:57.4]} 6. Be3 {[%clk 0:02:54.4]} 6... cxd4
{[%clk 0:02:56.9]} 7. cxd4 {[%clk 0:02:55.3]} 7... Nh6 {[%clk 0:02:56.7]} 8. Nc3
{[%clk 0:02:53.9]} 8... Qd8 {[%clk 0:02:56.9]} 9. Bd3 {[%clk 0:02:50.5]} 9...
O-O {[%clk 0:02:57]} 10. h3 {[%clk 0:02:49.8]} 10... Nf5 {[%clk 0:02:57.5]} 11.
Bc2 {[%clk 0:02:20.8]} 11... Nc6 {[%clk 0:02:53.2]} 12. d5 {[%clk 0:02:06.6]}
12... Nb4 {[%clk 0:02:50.6]} 13. Bb3 {[%clk 0:02:01.3]} 13... Nxe3 {[%clk
0:02:49.6]} 14. fxe3 {[%clk 0:02:02.2]} 14... Bf5 {[%clk 0:02:50]} 15. e4 {[%clk
0:01:56.4]} 15... Bd7 {[%clk 0:02:39.5]} 16. O-O {[%clk 0:01:54.9]} 16... Na6
{[%clk 0:02:39]} 17. Kh1 {[%clk 0:01:49]} 17... Nc5 {[%clk 0:02:38.8]} 18. Bc4
{[%clk 0:01:45]} 18... Bxc3 {[%clk 0:02:34.8]} 19. bxc3 {[%clk 0:01:45.1]} 19...
Nxe4 {[%clk 0:02:35.5]} 20. Qd4 {[%clk 0:01:37.6]} 20... Ng3+ {[%clk 0:02:25.9]}
21. Kh2 {[%clk 0:01:34.6]} 21... Nxf1+ {[%clk 0:02:25.7]} 22. Rxf1 {[%clk
0:01:35.5]} 22... f6 {[%clk 0:02:26.1]} 23. Re1 {[%clk 0:01:15.2]} 23... Kg7
{[%clk 0:02:23.4]} 24. Ng5 {[%clk 0:01:01.3]} 24... Re8 {[%clk 0:02:07.7]} 25.
Ne6+ {[%clk 0:00:36.5]} 25... Bxe6 {[%clk 0:02:07.6]} 26. Rxe6 {[%clk
0:00:37.4]} 26... a6 {[%clk 0:02:02.9]} 27. Bb3 {[%clk 0:00:37.3]} 27... b5
{[%clk 0:02:00.7]} 28. Qe4 {[%clk 0:00:36.6]} 28... Rc8 {[%clk 0:01:54.1]} 29.
Rxa6 {[%clk 0:00:30]} 29... Qc7+ {[%clk 0:01:52.2]} 30. Kh1 {[%clk 0:00:27.6]}
30... Qxc3 {[%clk 0:01:52.2]} 31. d6 {[%clk 0:00:23.9]} 31... exd6 {[%clk
0:01:26.2]} 32. Ra7+ {[%clk 0:00:23.8]} 32... Kh8 {[%clk 0:01:25.9]} 33. Qh4
{[%clk 0:00:03.2]} 33... Qe1+ {[%clk 0:01:25.4]} 34. Qxe1 {[%clk 0:00:03]} 34...
Rxe1+ {[%clk 0:01:26.3]} 35. Kh2 {[%clk 0:00:03.9]} 35... Rd8 {[%clk 0:01:22.5]}
36. g4 {[%clk 0:00:04.1]} 36... d5 {[%clk 0:01:22.7]} 37. h4 {[%clk 0:00:03.6]}
37... d4 {[%clk 0:01:23.2]} 38. g5 {[%clk 0:00:04.3]} 38... fxg5 {[%clk
0:01:22.9]} 39. hxg5 {[%clk 0:00:05.2]} 39... d3 {[%clk 0:01:23.5]} 40. Kg3
{[%clk 0:00:02.7]} 40... d2 {[%clk 0:01:23.8]} 0-1

[Event "Early-Titled-Tuesday-Blitz-October-10-2023"]
[Site "Chess.com"]
[Date "2023.10.10"]
[Round "5"]
[White "lluiss"]
[Black "Battever"]
[Result "0-1"]
[WhiteElo "2188"]
[BlackElo "2520"]
[TimeControl "180+1"]
[EndTime "8:53:06 PDT"]
[Termination "Battever won by resignation"]

1. Nf3 {[%clk 0:02:52.9]} 1... Nf6 {[%clk 0:02:47.1]} 2. d4 {[%clk 0:02:50.7]}
2... e6 {[%clk 0:02:46.3]} 3. Bf4 {[%clk 0:02:47.5]} 3... c5 {[%clk 0:02:35.3]}
4. e3 {[%clk 0:02:18.9]} 4... Nc6 {[%clk 0:02:35.2]} 5. c3 {[%clk 0:02:16.9]}
5... h6 {[%clk 0:02:34.9]} 6. h3 {[%clk 0:02:15.3]} 6... d5 {[%clk 0:02:34.9]}
7. Nbd2 {[%clk 0:02:05.2]} 7... Bd6 {[%clk 0:02:35]} 8. Bxd6 {[%clk 0:02:04.2]}
8... Qxd6 {[%clk 0:02:35.9]} 9. Bd3 {[%clk 0:02:03.7]} 9... e5 {[%clk 0:02:35]}
10. dxe5 {[%clk 0:02:02.7]} 10... Nxe5 {[%clk 0:02:35.9]} 11. Nxe5 {[%clk
0:02:02.8]} 11... Qxe5 {[%clk 0:02:36.8]} 12. Nf3 {[%clk 0:02:02.9]} 12... Qe7
{[%clk 0:02:33.6]} 13. O-O {[%clk 0:02:02]} 13... O-O {[%clk 0:02:33.9]} 14. Re1
{[%clk 0:02:01]} 14... b6 {[%clk 0:02:32.4]} 15. Qe2 {[%clk 0:01:55.1]} 15...
Bb7 {[%clk 0:02:29.5]} 16. Ba6 {[%clk 0:01:54.8]} 16... Bc6 {[%clk 0:02:24.2]}
17. Bb5 {[%clk 0:01:54.4]} 17... Bb7 {[%clk 0:02:22.2]} 18. Ba6 {[%clk
0:01:54.5]} 18... Rfe8 {[%clk 0:02:19.3]} 19. Bxb7 {[%clk 0:01:53.9]} 19... Qxb7
{[%clk 0:02:20.2]} 20. Qc2 {[%clk 0:01:43.2]} 20... Rad8 {[%clk 0:02:16.8]} 21.
Red1 {[%clk 0:01:42.4]} 21... a5 {[%clk 0:02:08.5]} 22. a4 {[%clk 0:01:37.8]}
22... Ne4 {[%clk 0:01:52.4]} 23. c4 {[%clk 0:01:31.5]} 23... Nf6 {[%clk
0:01:49.7]} 24. cxd5 {[%clk 0:01:24]} 24... Nxd5 {[%clk 0:01:50.6]} 25. Qc4
{[%clk 0:01:15.1]} 25... Nb4 {[%clk 0:01:47.9]} 26. Qb3 {[%clk 0:01:11.4]} 26...
Qe4 {[%clk 0:01:40.7]} 27. Rac1 {[%clk 0:00:58.6]} 27... Rd3 {[%clk 0:01:26.5]}
28. Rxd3 {[%clk 0:00:57.5]} 28... Qxd3 {[%clk 0:01:27.4]} 29. Rc3 {[%clk
0:00:46.4]} 29... Qb1+ {[%clk 0:01:26.2]} 30. Kh2 {[%clk 0:00:46.3]} 30... Qf1
{[%clk 0:01:18.9]} 31. Kg3 {[%clk 0:00:43.5]} 31... Re6 {[%clk 0:01:18.7]} 32.
Nh4 {[%clk 0:00:19.6]} 32... Rf6 {[%clk 0:01:02.3]} 33. f3 {[%clk 0:00:14]}
33... Qe1+ {[%clk 0:01:02.2]} 0-1

[Event "Early-Titled-Tuesday-Blitz-October-10-2023"]
[Site "Chess.com"]
[Date "2023.10.10"]
[Round "5"]
[White "MagnusCarlsen"]
[Black "Drags95"]
[Result "1-0"]
[WhiteElo "3282"]
[BlackElo "2882"]
[TimeControl "180+1"]
[EndTime "8:53:10 PDT"]
[Termination "MagnusCarlsen won by resignation"]

1. e4 {[%clk 0:02:38.4]} 1... c5 {[%clk 0:02:56.2]} 2. Nf3 {[%clk 0:02:30.7]}
2... e6 {[%clk 0:02:56.3]} 3. Nc3 {[%clk 0:02:19.3]} 3... Nc6 {[%clk 0:02:55.4]}
4. h4 {[%clk 0:02:13.5]} 4... d5 {[%clk 0:02:53.6]} 5. Bb5 {[%clk 0:02:08.2]}
5... Ne7 {[%clk 0:02:44.5]} 6. Ne5 {[%clk 0:02:06.2]} 6... Bd7 {[%clk
0:02:21.8]} 7. Nxd7 {[%clk 0:02:01.9]} 7... Qxd7 {[%clk 0:02:22.7]} 8. h5 {[%clk
0:02:01.5]} 8... h6 {[%clk 0:02:19.4]} 9. a4 {[%clk 0:01:56]} 9... a6 {[%clk
0:02:16.3]} 10. Bxc6 {[%clk 0:01:51.9]} 10... Nxc6 {[%clk 0:02:16]} 11. a5
{[%clk 0:01:52.3]} 11... Be7 {[%clk 0:02:10.7]} 12. d3 {[%clk 0:01:52.1]} 12...
O-O {[%clk 0:02:00.8]} 13. O-O {[%clk 0:01:49.5]} 13... dxe4 {[%clk 0:01:55.8]}
14. Nxe4 {[%clk 0:01:48.1]} 14... Nd4 {[%clk 0:01:51.2]} 15. Be3 {[%clk
0:01:46.9]} 15... Rac8 {[%clk 0:01:48]} 16. Re1 {[%clk 0:01:45.3]} 16... Nf5
{[%clk 0:01:45.4]} 17. Bf4 {[%clk 0:01:41.3]} 17... c4 {[%clk 0:01:38.2]} 18.
dxc4 {[%clk 0:01:38.6]} 18... Qxd1 {[%clk 0:01:39.1]} 19. Raxd1 {[%clk
0:01:38.4]} 19... Rxc4 {[%clk 0:01:40]} 20. c3 {[%clk 0:01:37.8]} 20... Rd8
{[%clk 0:01:30.5]} 21. f3 {[%clk 0:01:37.6]} 21... Rc6 {[%clk 0:00:40.5]} 22. b4
{[%clk 0:01:28.4]} 22... Nd6 {[%clk 0:00:38.1]} 23. Nxd6 {[%clk 0:01:22.6]}
23... Bxd6 {[%clk 0:00:38]} 24. c4 {[%clk 0:01:22.7]} 24... Kf8 {[%clk
0:00:25.3]} 25. c5 {[%clk 0:01:16.9]} 25... Be7 {[%clk 0:00:24.1]} 26. g4 {[%clk
0:01:14]} 26... Ke8 {[%clk 0:00:24.2]} 27. Rxd8+ {[%clk 0:01:13.2]} 27... Bxd8
{[%clk 0:00:23.6]} 28. Be5 {[%clk 0:01:12]} 28... f6 {[%clk 0:00:23.9]} 29. Bd6
{[%clk 0:01:11.8]} 29... e5 {[%clk 0:00:22.3]} 30. f4 {[%clk 0:01:11.4]} 30...
Bc7 {[%clk 0:00:17.1]} 31. fxe5 {[%clk 0:01:11.3]} 31... fxe5 {[%clk 0:00:17.3]}
32. Rxe5+ {[%clk 0:01:11.3]} 32... Kd8 {[%clk 0:00:17.8]} 33. Bxc7+ {[%clk
0:01:10.8]} 33... Rxc7 {[%clk 0:00:18.7]} 34. Kf2 {[%clk 0:01:10.9]} 34... Rd7
{[%clk 0:00:19.3]} 35. Ke3 {[%clk 0:01:10.9]} 35... Kc7 {[%clk 0:00:19.5]} 36.
Re6 {[%clk 0:01:10.9]} 36... Rf7 {[%clk 0:00:19.5]} 37. Rg6 {[%clk 0:01:10.4]}
37... Re7+ {[%clk 0:00:16.8]} 38. Kf4 {[%clk 0:01:09.6]} 38... Kd7 {[%clk
0:00:16.5]} 39. Kf5 {[%clk 0:01:09.3]} 39... Ke8 {[%clk 0:00:16.1]} 40. Re6
{[%clk 0:01:09.1]} 1-0

[Event "Early-Titled-Tuesday-Blitz-October-10-2023"]
[Site "Chess.com"]
[Date "2023.10.10"]
[Round "5"]
[White "atalz0"]
[Black "djano"]
[Result "0-1"]
[WhiteElo "2486"]
[BlackElo "2671"]
[TimeControl "180+1"]
[EndTime "8:53:12 PDT"]
[Termination "djano won on time"]

1. d4 {[%clk 0:03:00.9]} 1... d5 {[%clk 0:02:55.5]} 2. c4 {[%clk 0:03:01.2]}
2... e6 {[%clk 0:02:54.9]} 3. Nc3 {[%clk 0:03:01.1]} 3... c5 {[%clk 0:02:54.8]}
4. cxd5 {[%clk 0:03:00.5]} 4... cxd4 {[%clk 0:02:55.3]} 5. Qxd4 {[%clk
0:02:59.5]} 5... Nc6 {[%clk 0:02:51.1]} 6. Qd1 {[%clk 0:02:59.1]} 6... exd5
{[%clk 0:02:51.2]} 7. Qxd5 {[%clk 0:02:59.1]} 7... Bd6 {[%clk 0:02:49.5]} 8. Bg5
{[%clk 0:02:37.2]} 8... Nf6 {[%clk 0:02:48.7]} 9. Qf3 {[%clk 0:02:12.1]} 9...
Nd4 {[%clk 0:02:15.1]} 10. Qd3 {[%clk 0:02:03.4]} 10... Be5 {[%clk 0:02:04.4]}
11. Nf3 {[%clk 0:01:58]} 11... Nxf3+ {[%clk 0:01:35.4]} 12. exf3 {[%clk
0:01:58.9]} 12... Qa5 {[%clk 0:01:29.6]} 13. Qb5+ {[%clk 0:01:56.4]} 13... Qxb5
{[%clk 0:01:28.7]} 14. Bxb5+ {[%clk 0:01:57.3]} 14... Kf8 {[%clk 0:01:25.4]} 15.
O-O {[%clk 0:01:46]} 15... h6 {[%clk 0:01:24.7]} 16. Be3 {[%clk 0:01:41.8]}
16... Be6 {[%clk 0:01:20]} 17. Rfc1 {[%clk 0:01:33.6]} 17... g5 {[%clk 0:01:18]}
18. Rc2 {[%clk 0:01:01.7]} 18... Bf5 {[%clk 0:01:14.7]} 19. Re2 {[%clk
0:01:00.6]} 19... Kg7 {[%clk 0:01:08.8]} 20. Rd1 {[%clk 0:00:39.6]} 20... a6
{[%clk 0:01:00.2]} 21. Bd3 {[%clk 0:00:33.4]} 21... Be6 {[%clk 0:01:00.8]} 22.
Bb1 {[%clk 0:00:15.6]} 22... Rac8 {[%clk 0:00:54.4]} 23. Bd4 {[%clk 0:00:12.2]}
23... Bxd4 {[%clk 0:00:54.8]} 24. Rxd4 {[%clk 0:00:10.6]} 24... Bc4 {[%clk
0:00:55.4]} 25. Red2 {[%clk 0:00:07.8]} 25... b5 {[%clk 0:00:55.7]} 26. g3
{[%clk 0:00:04.9]} 26... Rhe8 {[%clk 0:00:54]} 27. Ne4 {[%clk 0:00:03.1]} 27...
Ng8 {[%clk 0:00:50.9]} 0-1

[Event "Early-Titled-Tuesday-Blitz-October-10-2023"]
[Site "Chess.com"]
[Date "2023.10.10"]
[Round "5"]
[White "vedantgoswami"]
[Black "AleksandrAleksikov"]
[Result "0-1"]
[WhiteElo "2380"]
[BlackElo "2228"]
[TimeControl "180+1"]
[EndTime "8:53:14 PDT"]
[Termination "AleksandrAleksikov won by resignation"]

1. c3 {[%clk 0:03:00.9]} 1... d5 {[%clk 0:02:57.4]} 2. d4 {[%clk 0:03:01.8]}
2... Bf5 {[%clk 0:02:53.9]} 3. Bf4 {[%clk 0:03:02.1]} 3... e6 {[%clk 0:02:53.6]}
4. Qb3 {[%clk 0:03:01.3]} 4... b6 {[%clk 0:02:52.5]} 5. c4 {[%clk 0:02:58.9]}
5... Nf6 {[%clk 0:02:52]} 6. Nc3 {[%clk 0:02:57.9]} 6... Bd6 {[%clk 0:02:51]} 7.
Bxd6 {[%clk 0:02:53.5]} 7... Qxd6 {[%clk 0:02:48.6]} 8. Nf3 {[%clk 0:02:50.1]}
8... O-O {[%clk 0:02:46]} 9. e3 {[%clk 0:02:44.6]} 9... c6 {[%clk 0:02:44.2]}
10. cxd5 {[%clk 0:02:41.3]} 10... exd5 {[%clk 0:02:42.8]} 11. Rd1 {[%clk
0:02:37.3]} 11... Nbd7 {[%clk 0:02:39.2]} 12. Be2 {[%clk 0:02:37.2]} 12... Rfe8
{[%clk 0:02:37.9]} 13. O-O {[%clk 0:02:36.3]} 13... Ne4 {[%clk 0:02:37.1]} 14.
Nxe4 {[%clk 0:02:29.8]} 14... Bxe4 {[%clk 0:02:31.8]} 15. Nd2 {[%clk 0:02:24.9]}
15... Bf5 {[%clk 0:02:25.8]} 16. Qa4 {[%clk 0:02:21.6]} 16... a5 {[%clk
0:02:21.9]} 17. Rc1 {[%clk 0:02:16.2]} 17... Re6 {[%clk 0:02:19.6]} 18. a3
{[%clk 0:02:07.3]} 18... b5 {[%clk 0:02:15.5]} 19. Qb3 {[%clk 0:02:05.1]} 19...
a4 {[%clk 0:02:13.5]} 20. Qc3 {[%clk 0:02:00.5]} 20... Nb6 {[%clk 0:02:11.3]}
21. Qc5 {[%clk 0:01:53.8]} 21... Nc4 {[%clk 0:02:06.4]} 22. Qxd6 {[%clk
0:01:46.7]} 22... Rxd6 {[%clk 0:02:05.5]} 23. Bxc4 {[%clk 0:01:16]} 23... bxc4
{[%clk 0:02:03.8]} 24. e4 {[%clk 0:01:12.7]} 24... Bg6 {[%clk 0:01:58.7]} 25. f4
{[%clk 0:00:51]} 25... f6 {[%clk 0:01:51.7]} 26. f5 {[%clk 0:00:49.4]} 26... Bh5
{[%clk 0:01:44.3]} 27. e5 {[%clk 0:00:44.5]} 27... Rdd8 {[%clk 0:01:42.8]} 28.
Nf3 {[%clk 0:00:23.5]} 28... Rab8 {[%clk 0:01:31.6]} 29. Rc2 {[%clk 0:00:22.7]}
29... Rb3 {[%clk 0:01:27.8]} 30. h3 {[%clk 0:00:20.9]} 30... Bxf3 {[%clk
0:01:25.9]} 31. Rxf3 {[%clk 0:00:19.9]} 31... Rxf3 {[%clk 0:01:23.9]} 32. gxf3
{[%clk 0:00:17.8]} 32... fxe5 {[%clk 0:01:22.5]} 33. dxe5 {[%clk 0:00:17.6]}
33... Rf8 {[%clk 0:01:22.2]} 34. Re2 {[%clk 0:00:14]} 34... Rxf5 {[%clk
0:01:19.8]} 35. e6 {[%clk 0:00:14.6]} 35... Kf8 {[%clk 0:01:19.4]} 36. e7+
{[%clk 0:00:15]} 36... Ke8 {[%clk 0:01:18.6]} 37. Re6 {[%clk 0:00:13.9]} 37...
Rf6 {[%clk 0:01:18.2]} 38. Re5 {[%clk 0:00:12]} 38... Rxf3 {[%clk 0:01:10.8]}
39. Kg2 {[%clk 0:00:11.2]} 39... Rf7 {[%clk 0:01:08.6]} 0-1

[Event "Early-Titled-Tuesday-Blitz-October-10-2023"]
[Site "Chess.com"]
[Date "2023.10.10"]
[Round "5"]
[White "BeautiFullMindChess"]
[Black "Better_Chess_Faster"]
[Result "1-0"]
[WhiteElo "2267"]
[BlackElo "2047"]
[TimeControl "180+1"]
[EndTime "8:53:15 PDT"]
[Termination "BeautiFullMindChess won by resignation"]

1. e4 {[%clk 0:02:55.8]} 1... Nf6 {[%clk 0:02:59.6]} 2. e5 {[%clk 0:02:55.8]}
2... Nd5 {[%clk 0:02:59.6]} 3. d4 {[%clk 0:02:56.2]} 3... d6 {[%clk 0:03:00]} 4.
Nf3 {[%clk 0:02:56.1]} 4... dxe5 {[%clk 0:02:59.8]} 5. Nxe5 {[%clk 0:02:56.2]}
5... c6 {[%clk 0:02:55.9]} 6. Bd3 {[%clk 0:02:54.2]} 6... g6 {[%clk 0:02:53.8]}
7. h3 {[%clk 0:02:53.5]} 7... Bg7 {[%clk 0:02:53.2]} 8. Nf3 {[%clk 0:02:53.4]}
8... O-O {[%clk 0:02:52.5]} 9. O-O {[%clk 0:02:53.4]} 9... Nd7 {[%clk
0:02:50.5]} 10. Re1 {[%clk 0:02:53.2]} 10... Qc7 {[%clk 0:02:49.4]} 11. c3
{[%clk 0:02:53.1]} 11... e5 {[%clk 0:02:47.3]} 12. dxe5 {[%clk 0:02:53.2]} 12...
Nxe5 {[%clk 0:02:47]} 13. Nxe5 {[%clk 0:02:54.1]} 13... Bxe5 {[%clk 0:02:46]}
14. Bh6 {[%clk 0:02:48.7]} 14... Bg7 {[%clk 0:02:45.7]} 15. Bxg7 {[%clk
0:02:45.7]} 15... Kxg7 {[%clk 0:02:46.6]} 16. Nd2 {[%clk 0:02:22]} 16... Qf4
{[%clk 0:02:37.7]} 17. Re4 {[%clk 0:02:03.4]} 17... Qf6 {[%clk 0:02:36.2]} 18.
Re1 {[%clk 0:01:31.7]} 18... Bf5 {[%clk 0:02:33.8]} 19. Bxf5 {[%clk 0:01:23.7]}
19... Qxf5 {[%clk 0:02:33.4]} 20. Nc4 {[%clk 0:01:18.1]} 20... Qf6 {[%clk
0:02:21.7]} 21. Ne5 {[%clk 0:01:11.6]} 21... Rad8 {[%clk 0:02:19.1]} 22. Ng4
{[%clk 0:01:08.7]} 22... Qf4 {[%clk 0:02:09.9]} 23. g3 {[%clk 0:01:02.1]} 23...
Qc4 {[%clk 0:01:57.6]} 24. Qf3 {[%clk 0:00:44.2]} 24... f5 {[%clk 0:01:53.2]}
25. Ne5 {[%clk 0:00:41.2]} 25... Qc5 {[%clk 0:01:43]} 26. Nd3 {[%clk 0:00:39.5]}
26... Qb6 {[%clk 0:01:32.6]} 27. c4 {[%clk 0:00:33.9]} 27... Nb4 {[%clk
0:01:23.4]} 28. Nf4 {[%clk 0:00:32.9]} 28... Nc2 {[%clk 0:01:07.9]} 29. Qc3+
{[%clk 0:00:32.7]} 29... Nd4 {[%clk 0:01:02.8]} 30. Ne6+ {[%clk 0:00:32.1]}
30... Kg8 {[%clk 0:00:58.2]} 31. c5 {[%clk 0:00:23.9]} 31... Qb5 {[%clk
0:00:44.7]} 32. Nxd4 {[%clk 0:00:23.3]} 32... Rfe8 {[%clk 0:00:38.8]} 33. Nxb5
{[%clk 0:00:23]} 1-0

[Event "Early-Titled-Tuesday-Blitz-October-10-2023"]
[Site "Chess.com"]
[Date "2023.10.10"]
[Round "5"]
[White "dosto07"]
[Black "RETURNOFTHELAGGER"]
[Result "0-1"]
[WhiteElo "2513"]
[BlackElo "2677"]
[TimeControl "180+1"]
[EndTime "8:53:17 PDT"]
[Termination "RETURNOFTHELAGGER won on time"]

1. e4 {[%clk 0:03:00.9]} 1... c5 {[%clk 0:02:50.5]} 2. Nf3 {[%clk 0:03:01]} 2...
d6 {[%clk 0:02:50.6]} 3. Bb5+ {[%clk 0:03:00.8]} 3... Nc6 {[%clk 0:02:49.1]} 4.
d4 {[%clk 0:02:59.9]} 4... cxd4 {[%clk 0:02:32.3]} 5. Qxd4 {[%clk 0:02:59.8]}
5... Bd7 {[%clk 0:02:33.2]} 6. Bxc6 {[%clk 0:02:59.9]} 6... Bxc6 {[%clk
0:02:24.7]} 7. Nc3 {[%clk 0:02:59.9]} 7... Nf6 {[%clk 0:02:23.2]} 8. Bg5 {[%clk
0:02:59.6]} 8... e6 {[%clk 0:02:21]} 9. O-O-O {[%clk 0:02:59.6]} 9... Be7 {[%clk
0:02:19.8]} 10. Rhe1 {[%clk 0:02:59.7]} 10... O-O {[%clk 0:02:18.2]} 11. Kb1
{[%clk 0:03:00.2]} 11... h6 {[%clk 0:02:15.3]} 12. Bh4 {[%clk 0:02:59.8]} 12...
b5 {[%clk 0:02:09.6]} 13. Bxf6 {[%clk 0:02:41.5]} 13... gxf6 {[%clk 0:02:07.4]}
14. e5 {[%clk 0:02:34.5]} 14... Bxf3 {[%clk 0:02:04]} 15. gxf3 {[%clk
0:02:15.7]} 15... fxe5 {[%clk 0:02:04.9]} 16. Qg4+ {[%clk 0:01:45]} 16... Kh7
{[%clk 0:01:55.6]} 17. Rxe5 {[%clk 0:01:43.5]} 17... b4 {[%clk 0:01:52.1]} 18.
Ne2 {[%clk 0:00:58.5]} 18... dxe5 {[%clk 0:01:24.6]} 19. Rxd8 {[%clk 0:00:57.5]}
19... Raxd8 {[%clk 0:01:25.5]} 20. b3 {[%clk 0:00:50.9]} 20... Rd1+ {[%clk
0:01:19]} 21. Kb2 {[%clk 0:00:50.7]} 21... Rfd8 {[%clk 0:01:09.6]} 22. Qe4+
{[%clk 0:00:42.5]} 22... Kg7 {[%clk 0:01:04.9]} 23. Qg4+ {[%clk 0:00:42.2]}
23... Kf8 {[%clk 0:01:01.9]} 24. Qh5 {[%clk 0:00:40.3]} 24... Bf6 {[%clk
0:00:57.8]} 25. Qxh6+ {[%clk 0:00:06.8]} 25... Bg7 {[%clk 0:00:54.2]} 26. Qg5
{[%clk 0:00:03.7]} 26... e4+ {[%clk 0:00:47.5]} 27. c3 {[%clk 0:00:02.9]} 27...
R8d2+ {[%clk 0:00:44.1]} 0-1